fUST/lending_fUST_20250622
["ID","MTS","AMOUNT","RATE_DAILY","PERIOD"]
[366881468,1750545043322,-460.0,0.00023001,2]
[366881469,1750545043331,-460.0,0.00023001,2]
[366881470,1750545043341,-460.0,0.00023001,2]
[366881471,1750545043349,-406.36770403,0.00023001,2]
[366881472,1750545043358,-460.0,0.00023001,2]
[366881473,1750545043367,-460.0,0.00023001,2]
[366881474,1750545043376,-460.0,0.00023001,2]
[366881475,1750545043385,-348.36319504,0.00023001,2]
[366881476,1750545043395,-460.0,0.00023001,2]
[366881477,1750545043404,-460.0,0.00023001,2]
[366881478,1750545043414,-179.16,0.00023001,2]
[366881479,1750545043423,-513.84,0.00023001,2]
[366881480,1750545043435,-513.84,0.00023001,2]
[366881481,1750545043444,-513.84,0.00023001,2]
[366881482,1750545043453,-460.0,0.00023001,2]
[366881483,1750545043463,-460.0,0.00023001,2]
[366881484,1750545043472,-460.0,0.00023001,2]
[366881485,1750545043481,-341.78845594,0.00023001,2]
[366881486,1750545043490,-460.0,0.00023001,2]
[366881487,1750545043499,-171.00142421,0.00023001,2]
[366881488,1750545043508,-460.0,0.00023001,2]
[366881489,1750545043518,-460.0,0.00023001,2]
[366881490,1750545043527,-563.88,0.00023001,2]
[366881491,1750545043536,-460.0,0.00023001,2]
[366881492,1750545043546,-563.88,0.00023001,2]
[366881493,1750545043555,-563.88,0.00023001,2]
[366881494,1750545043564,-460.0,0.00023001,2]
[366881495,1750545043573,-608.37,0.00023001,2]
[366881496,1750545043582,-636.57,0.00023001,2]
[366881497,1750545043591,-636.57,0.00023001,2]
[366881498,1750545043600,-523.49,0.00023001,2]
[366881499,1750545043610,-523.49,0.00023001,2]
[366881500,1750545043619,-523.49,0.00023001,2]
[366881501,1750545043628,-467.61,0.00023001,2]
[366881502,1750545043637,-467.61,0.00023001,2]
[366881503,1750545043646,-467.61,0.00023001,2]
[366881504,1750545043655,-460.0,0.00023001,2]
[366881505,1750545043664,-460.0,0.00023001,2]
[366881506,1750545043673,-460.0,0.00023001,2]
[366881507,1750545043683,-460.0,0.00023001,2]
[366881508,1750545043693,-460.0,0.00023001,2]
[366881509,1750545043702,-460.0,0.00023001,2]
[366881510,1750545043711,-460.0,0.00023001,2]
[366881511,1750545043720,-460.0,0.00023001,2]
[366881512,1750545043729,-460.0,0.00023001,2]
[366881513,1750545043738,-460.0,0.00023001,2]
[366881514,1750545043747,-460.0,0.00023001,2]
[366881515,1750545043756,-496.76,0.00023001,2]
[366881516,1750545043765,-460.0,0.00023001,2]
[366881517,1750545043775,-560.42,0.00023001,2]
[366881518,1750545043784,-460.0,0.00023001,2]
[366881519,1750545043793,-530.13658952,0.00023001,2]
[366881520,1750545043802,-460.0,0.00023001,2]
[366881521,1750545043811,-460.0,0.00023001,2]
[366881522,1750545043820,-536.57,0.00023001,2]
[366881523,1750545043829,-440.0,0.00023001,2]
[366881524,1750545043838,-460.0,0.00023001,2]
[366881525,1750545043847,-460.0,0.00023001,2]
[366881526,1750545043856,-460.0,0.00023001,2]
[366881527,1750545043865,-460.0,0.00023001,2]
[366881528,1750545043874,-460.0,0.00023001,2]
[366881529,1750545043883,-460.0,0.00023001,2]
[366881530,1750545043892,-460.0,0.00023002,2]
[366881531,1750545043901,-233.91634502,0.00023002,2]
[366881532,1750545043910,-460.0,0.00023002,2]
[366881533,1750545043919,-379.92568837,0.00023002,2]
[366881534,1750545043927,-460.0,0.00023002,2]
[366881535,1750545043938,-553.9948652,0.00023002,2]
[366881536,1750545043947,-460.0,0.00023002,2]
[366881537,1750545043957,-423.39565073,0.00023002,2]
[366881538,1750545043966,-460.0,0.00023002,2]
[366881539,1750545043975,-460.0,0.00023002,2]
[366881540,1750545043985,-460.0,0.00023002,2]
[366881541,1750545043995,-460.0,0.00023002,2]
[366881542,1750545044004,-385.06845608,0.00023002,2]
[366881543,1750545044014,-460.0,0.00023002,2]
[366881544,1750545044024,-460.0,0.00023002,2]
[366881545,1750545044033,-435.48789392,0.00023002,2]
[366881546,1750545044043,-460.0,0.00023002,2]
[366881547,1750545044052,-400.59629711,0.00023002,2]
[366881548,1750545044062,-433.35761123,0.00023002,2]
[366881549,1750545044071,-460.0,0.00023002,2]
[366881550,1750545044080,-460.0,0.00023002,2]
[366881551,1750545044089,-460.0,0.00023002,2]
[366881552,1750545044099,-395.99933751,0.00023002,2]
[366881553,1750545044109,-460.0,0.00023002,2]
[366881554,1750545044119,-460.0,0.00023002,2]
[366881555,1750545044129,-431.46975702,0.00023002,2]
[366881556,1750545044139,-460.0,0.00023002,2]
[366881557,1750545044149,-460.0,0.00023002,2]
[366881558,1750545044159,-257.71895875,0.00023002,2]
[366881559,1750545044168,-403.99512149,0.00023002,2]
[366881560,1750545044178,-460.0,0.00023002,2]
[366881561,1750545044188,-460.0,0.00023002,2]
[366881562,1750545044199,-430.0,0.00023002,2]
[366881563,1750545044208,-445.71375642,0.00023002,2]
[366881564,1750545044217,-460.0,0.00023002,2]
[366881565,1750545044227,-460.0,0.00023002,2]
[366881566,1750545044236,-432.68841957,0.00023002,2]
[366881567,1750545044245,-460.0,0.00023002,2]
[366881568,1750545044255,-214.95574998,0.00023002,2]
[366881569,1750545044264,-440.0,0.00023002,2]
[366881570,1750545044274,-466.51986027,0.00023002,2]
[366881571,1750545044283,-440.1425519,0.00023002,2]
[366881572,1750545044293,-430.0,0.00023002,2]
[366881573,1750545044303,-436.021116,0.00023002,2]
[366881574,1750545044312,-460.0,0.00023002,2]
[366881575,1750545044321,-460.0,0.00023002,2]
[366881576,1750545044330,-395.60899255,0.00023002,2]
[366881577,1750545044340,-448.34318911,0.00023002,2]
[366881578,1750545044349,-460.0,0.00023002,2]
[366881579,1750545044359,-460.0,0.00023002,2]
[366881580,1750545044368,-460.0,0.00023002,2]
[366881581,1750545044378,-408.62465476,0.00023002,2]
[366881582,1750545044387,-460.0,0.00023002,2]
[366881583,1750545044397,-434.51849022,0.00023002,2]
[366881584,1750545044406,-460.0,0.00023002,2]
[366881585,1750545044415,-460.0,0.00023002,2]
[366881586,1750545044424,-460.0,0.00023002,2]
[366881587,1750545044435,-437.32885911,0.00023002,2]
[366881588,1750545044445,-460.0,0.00023002,2]
[366881589,1750545044454,-460.0,0.00023002,2]
[366881590,1750545044465,-460.0,0.00023002,2]
[366881591,1750545044475,-460.0,0.00023002,2]
[366881592,1750545044484,-460.0,0.00023002,2]
[366881593,1750545044493,-468.71770552,0.00023002,2]
[366881594,1750545044504,-460.0,0.00023002,2]
[366881595,1750545044513,-460.0,0.00023002,2]
[366881596,1750545044522,-460.0,0.00023002,2]
[366881597,1750545044532,-460.0,0.00023002,2]
[366881598,1750545044541,-506.35867036,0.00023002,2]
[366881599,1750545044551,-448.16744798,0.00023002,2]
[366881600,1750545044560,-460.0,0.00023002,2]
[366881601,1750545044569,-460.0,0.00023002,2]
[366881602,1750545044578,-460.0,0.00023002,2]
[366881603,1750545044588,-460.0,0.00023002,2]
[366881604,1750545044597,-460.0,0.00023002,2]
[366881605,1750545044606,-445.05091823,0.00023002,2]
[366881606,1750545044615,-510.4426767,0.00023002,2]
[366881607,1750545044625,-460.0,0.00023002,2]
[366881608,1750545044634,-460.0,0.00023002,2]
[366881609,1750545044644,-460.0,0.00023002,2]
[366881611,1750545044653,-460.0,0.00023002,2]
[366881613,1750545044662,-460.0,0.00023002,2]
[366881615,1750545044672,-460.0,0.00023002,2]
[366881616,1750545044758,-460.0,0.00023002,2]
[366881617,1750545044768,-460.9054198,0.00023002,2]
[366881618,1750545044778,-460.0,0.00023002,2]
[366881619,1750545044788,-460.0,0.00023002,2]
[366881620,1750545044798,-460.0,0.00023002,2]
[366881622,1750545044807,-460.0,0.00023002,2]
[366881623,1750545044817,-460.0,0.00023002,2]
[366881624,1750545044826,-460.0,0.00023002,2]
[366881625,1750545044835,-460.0,0.00023002,2]
[366881626,1750545044845,-460.0,0.00023002,2]
[366881627,1750545044854,-440.0,0.00023002,2]
[366881628,1750545044864,-460.0,0.00023002,2]
[366881629,1750545044874,-460.0,0.00023002,2]
[366881630,1750545044883,-460.0,0.00023002,2]
[366881631,1750545044893,-460.0,0.00023002,2]
[366881632,1750545044903,-460.0,0.00023002,2]
[366881633,1750545044912,-460.0,0.00023002,2]
[366881634,1750545044922,-460.0,0.00023002,2]
[366881635,1750545044931,-460.0,0.00023002,2]
[366881636,1750545044941,-460.0,0.00023002,2]
[366881637,1750545044951,-460.0,0.00023002,2]
[366881638,1750545044960,-461.15025127,0.00023002,2]
[366881639,1750545044969,-460.0,0.00023002,2]
[366881640,1750545044979,-435.30857183,0.00023002,2]
[366881641,1750545044989,-460.0,0.00023002,2]
[366881642,1750545044998,-460.0,0.00023002,2]
[366881643,1750545045007,-460.0,0.00023002,2]
[366881644,1750545045017,-460.0,0.00023002,2]
[366881645,1750545045027,-460.0,0.00023002,2]
[366881647,1750545045036,-460.0,0.00023002,2]
[366881649,1750545045046,-406.13125955,0.00023002,2]
[366881650,1750545045056,-440.0,0.00023002,2]
[366881651,1750545045066,-882.16404566,0.00023003,8]
[366881652,1750545045075,-460.0,0.00023072,2]
[366881653,1750545045085,-500.0,0.00023073,2]
[366881654,1750545045094,-500.0,0.00023073,2]
[366881655,1750545045104,-500.0,0.00023073,2]
[366881656,1750545045113,-500.0,0.00023073,2]
[366881657,1750545045123,-500.0,0.00023073,2]
[366881659,1750545045137,-503.34321714,0.00023073,2]
[366881661,1750545045146,-500.0,0.00023073,2]
[366881662,1750545045156,-500.0,0.00023073,2]
[366881663,1750545045165,-500.0,0.00023073,2]
[366881664,1750545045175,-882.16404566,0.00023107,8]
[366881665,1750545045185,-882.16404566,0.0002321,8]
[366881666,1750545045194,-168.0,0.00023256,2]
[366881667,1750545045204,-168.0,0.00023278,2]
[366881668,1750545045214,-563.88,0.00023299,2]
[366881669,1750545045224,-446.895707,0.000233,30]
[366881670,1750545045233,-513.84,0.00023313,2]
[366881671,1750545045242,-460.0,0.00023313,2]
[366881672,1750545045252,-467.61,0.00023313,2]
[366881673,1750545045261,-882.16404566,0.00023314,9]
[366881674,1750545045271,-460.0,0.00023359,2]
[366881675,1750545045281,-882.16404566,0.00023417,9]
[366881676,1750545045290,-500.0,0.00023447,8]
[366881677,1750545045300,-460.0,0.00023469,2]
[366881678,1750545045309,-378.82078526,0.0002348,2]
[366881679,1750545045319,-441.40167318,0.0002348,2]
[366881680,1750545045328,-460.0,0.0002348,2]
[366881681,1750545045338,-434.67149598,0.0002348,2]
[366881682,1750545045347,-440.0,0.0002348,2]
[366881683,1750545045356,-1000.0,0.00023521,2]
[366881684,1750545045366,-1000.0,0.00023521,2]
[366881685,1750545045375,-1000.0,0.00023521,2]
[366881686,1750545045385,-1000.0,0.00023521,2]
[366881687,1750545045395,-882.16404566,0.00023521,9]
[366881688,1750545045404,-200.0,0.00023561,2]
[366881689,1750545045414,-513.84,0.0002362,2]
[366881690,1750545045423,-460.0,0.0002362,2]
[366881691,1750545045433,-467.61,0.0002362,2]
[366881692,1750545045442,-816.51153914,0.00023621,2]
[366881693,1750545045452,-1000.0,0.00023621,2]
[366881694,1750545045462,-1000.0,0.00023621,2]
[366881695,1750545045471,-882.16404566,0.00023624,9]
[366881696,1750545045481,-563.88,0.00023627,2]
[366881697,1750545045490,-523.49,0.00023627,2]
[366881698,1750545045499,-204.567198,0.00023627,2]
[366881699,1750545045509,-557.45,0.00023627,2]
[366881700,1750545045518,-556.76,0.00023628,2]
[366881701,1750545045527,-636.57,0.00023628,2]
[366881702,1750545045537,-460.0,0.00023628,2]
[366881703,1750545045546,-460.0,0.00023628,2]
[366881704,1750545045555,-460.0,0.00023628,2]
[366881705,1750545045565,-460.0,0.00023628,2]
[366881706,1750545045574,-513.84,0.00023638,2]
[366881707,1750545045583,-513.84,0.00023638,2]
[366881708,1750545045593,-460.0,0.00023638,2]
[366881709,1750545045603,-460.0,0.00023638,2]
[366881710,1750545045612,-563.88,0.00023638,2]
[366881711,1750545045622,-523.49,0.00023638,2]
[366881712,1750545045632,-467.61,0.00023638,2]
[366881713,1750545045641,-467.61,0.00023638,2]
[366881714,1750545045651,-358.28711798,0.00023639,2]
[366881715,1750545045660,-460.0,0.00023639,2]
[366881716,1750545045670,-347.71449881,0.00023639,2]
[366881717,1750545045679,-460.0,0.00023639,2]
[366881718,1750545045690,-460.0,0.00023639,2]
[366881719,1750545045699,-460.0,0.00023639,2]
[366881720,1750545045708,-356.43016519,0.00023639,2]
[366881721,1750545045719,-460.0,0.00023639,2]
[366881723,1750545045729,-460.0,0.00023639,2]
[366881724,1750545045739,-460.0,0.00023639,2]
[366881725,1750545045749,-460.0,0.00023639,2]
[366881726,1750545045758,-399.36960841,0.00023639,2]
[366881727,1750545045768,-370.66070181,0.00023639,2]
[366881728,1750545045777,-200.0,0.00023639,2]
[366881729,1750545045787,-460.0,0.00023639,2]
[366881730,1750545045796,-435.70081465,0.00023639,2]
[366881731,1750545045806,-460.0,0.00023639,2]
[366881732,1750545045816,-460.0,0.00023639,2]
[366881733,1750545045826,-210.02883917,0.00023639,2]
[366881734,1750545045836,-460.0,0.00023639,2]
[366881735,1750545045845,-525.6824942,0.00023639,2]
[366881736,1750545045855,-460.0,0.00023639,2]
[366881737,1750545045865,-460.0,0.00023639,2]
[366881738,1750545045875,-460.0,0.00023639,2]
[366881739,1750545045884,-460.0,0.00023639,2]
[366881740,1750545045894,-460.0,0.00023639,2]
[366881741,1750545045905,-460.0,0.00023639,2]
[366881742,1750545045914,-460.0,0.00023639,2]
[366881743,1750545045924,-608.51228631,0.00023639,2]
[366881744,1750545045934,-379.78526538,0.00023639,2]
[366881745,1750545045943,-460.0,0.00023639,2]
[366881746,1750545045953,-381.58880309,0.00023639,2]
[366881747,1750545045963,-460.0,0.00023639,2]
[366881748,1750545045972,-460.0,0.00023639,2]
[366881749,1750545045983,-339.74726598,0.00023639,2]
[366881750,1750545045992,-544.01851863,0.00023639,2]
[366881751,1750545046002,-463.16230889,0.00023639,2]
[366881752,1750545046012,-460.0,0.00023639,2]
[366881753,1750545046021,-462.42695916,0.00023639,2]
[366881754,1750545046031,-460.0,0.00023639,2]
[366881755,1750545046041,-563.88,0.00023654,2]
[366881756,1750545046051,-636.57,0.00023657,2]
[366881757,1750545046061,-523.49,0.00023657,2]
[366881759,1750545046070,-460.0,0.00023657,2]
[366881761,1750545046080,-315.6,0.00023657,2]
[366881762,1750545046090,-160.0,0.00023657,2]
[366881764,1750545046100,-590.15,0.00023657,2]
[366881765,1750545046110,-460.0,0.00023657,2]
[366881766,1750545046120,-460.0,0.00023658,2]
[366881767,1750545046136,-317.219664,0.00023658,2]
[366881768,1750545046146,-460.0,0.00023658,2]
[366881769,1750545046155,-476.27139643,0.00023658,2]
[366881770,1750545046167,-636.57,0.00023697,2]
[366881771,1750545046176,-460.0,0.00023697,2]
[366881772,1750545046184,-460.0,0.00023697,2]
[366881773,1750545046194,-513.84,0.00023708,2]
[366881774,1750545046205,-460.0,0.00023708,2]
[366881775,1750545046214,-467.61,0.00023708,2]
[366881777,1750545046223,-460.0,0.00023709,2]
[366881779,1750545046231,-563.88,0.00023718,2]
[366881780,1750545046240,-882.16404566,0.00023728,9]
[366881781,1750545046249,-513.84,0.00023757,2]
[366881782,1750545046259,-460.0,0.00023757,2]
[366881783,1750545046267,-467.61,0.00023757,2]
[366881784,1750545046275,-636.57,0.00023758,2]
[366881785,1750545046284,-523.49,0.00023758,2]
[366881786,1750545046292,-184.56962487,0.00023758,2]
[366881787,1750545046301,-460.0,0.00023758,2]
[366881788,1750545046310,-271.55902274,0.00023759,30]
[366881789,1750545046319,-460.0,0.00023759,2]
[366881790,1750545046328,-502.37827813,0.00023763,2]
[366881792,1750545046337,-563.88,0.00023815,2]
[366881793,1750545046345,-420.0,0.00023817,2]
[366881795,1750545046354,-882.16404566,0.00023831,10]
[366881797,1750545046362,-513.84,0.00023889,2]
[366881798,1750545046372,-513.84,0.00023889,2]
[366881799,1750545046379,-513.84,0.00023889,2]
[366881800,1750545046387,-513.84,0.00023889,2]
[366881801,1750545046396,-514.07421103,0.00023889,2]
[366881802,1750545046404,-460.0,0.00023889,2]
[366881803,1750545046413,-460.0,0.00023889,2]
[366881804,1750545046427,-431.86,0.00023889,2]
[366881805,1750545046437,-467.61,0.00023889,2]
[366881806,1750545046446,-467.61,0.00023889,2]
[366881807,1750545046458,-467.61,0.00023889,2]
[366881808,1750545046467,-467.61,0.00023889,2]
[366881809,1750545046477,-467.76,0.00023889,2]
[366881810,1750545046487,-523.49,0.0002389,2]
[366881811,1750545046497,-882.16404566,0.00023934,10]
[366881817,1750545046577,-501.01766854,0.00023973,2]
[366881819,1750545046586,-500.0,0.00023973,2]
[366881820,1750545046596,-555.82829724,0.00023973,2]
[366881821,1750545046605,-502.97608695,0.00023973,2]
[366881822,1750545046614,-500.0,0.00023973,2]
[366881823,1750545046624,-500.0,0.00023973,2]
[366881824,1750545046634,-579.6336408,0.00023973,2]
[366881825,1750545046644,-500.0,0.00023973,2]
[366881826,1750545046654,-150.91223692,0.00023973,2]
[366881827,1750545046663,-500.0,0.00023973,2]
[366881828,1750545046673,-500.0,0.00023973,2]
[366881829,1750545046683,-516.82066677,0.00023973,2]
[366881830,1750545046692,-381.15923323,0.00023973,2]
[366881831,1750545046702,-441.22774082,0.00023973,2]
[366881832,1750545046710,-503.41899336,0.00023973,2]
[366881833,1750545046720,-167.19677086,0.00023973,2]
[366881834,1750545046729,-500.0,0.00023973,2]
[366881835,1750545046739,-500.0,0.00023973,2]
[366881836,1750545046748,-600.0,0.00023973,2]
[366881837,1750545046758,-506.87102913,0.00023973,2]
[366881838,1750545046767,-500.0,0.00023973,2]
[366881839,1750545046777,-500.0,0.00023973,2]
[366881840,1750545046786,-500.38764386,0.00023973,2]
[366881841,1750545046795,-500.0,0.00023973,2]
[366881842,1750545046805,-425.1149262,0.0002399,2]
[366881843,1750545046814,-500.0,0.00023995,9]
[366881844,1750545046825,-563.88,0.00023998,2]
[366881845,1750545046834,-636.57,0.00023998,2]
[366881846,1750545046844,-447.92,0.00023998,2]
[366881847,1750545046853,-563.88,0.00023999,2]
[366881848,1750545046863,-636.57,0.00023999,2]
[366881849,1750545046873,-523.49,0.00023999,2]
[366881850,1750545046882,-30143.0,0.00024,2]
[366881851,1750545046892,-523.9660634,0.00024,3]
[366881852,1750545046901,-19229.07462497,0.00024,2]
[366881853,1750545046910,-30847.00825165,0.00024,2]
[366881854,1750545046920,-952.50731548,0.00024,2]
[366881855,1750545046929,-75676.3183852,0.00024,2]
[366881856,1750545046938,-12561.71570977,0.00024,42]
[366881857,1750545046948,-1687.41683459,0.00024,2]
[366881858,1750545046957,-6928.46937295,0.00024,2]
[366881859,1750545046966,-10114.34832198,0.00024,2]
[366881860,1750545046976,-9683.95430417,0.00024,2]
[366881861,1750545046985,-10069.34537373,0.00024,2]
[366881862,1750545046994,-94544.10126187,0.00024,2]
[366881863,1750545047003,-451.86417882,0.00024,2]
[366881864,1750545047013,-544778.01348358,0.00024,2]
[366881865,1750545047022,-158.0,0.00024,2]
[366881866,1750545047031,-882.16404566,0.00024038,10]
[366881867,1750545047041,-563.88,0.00024048,2]
[366881868,1750545047051,-563.88,0.00024048,2]
[366881869,1750545047061,-563.88,0.00024048,2]
[366881870,1750545047070,-563.88,0.00024048,2]
[366881871,1750545047079,-563.94,0.00024048,2]
[366881872,1750545047088,-300.0,0.00024049,2]
[366881873,1750545047098,-5000.0,0.00024049,2]
[366881874,1750545047107,-300.0,0.00024049,2]
[366881875,1750545047116,-300.0,0.00024049,2]
[366881876,1750545047127,-300.0,0.00024049,2]
[366881877,1750545047138,-207.4,0.00024049,2]
[366881878,1750545047148,-300.0,0.00024049,2]
[366881879,1750545047158,-800.0,0.00024049,2]
[366881880,1750545047168,-300.0,0.00024049,2]
[366881881,1750545047178,-800.0,0.00024049,2]
[366881882,1750545047188,-300.0,0.00024049,2]
[366881883,1750545047198,-800.0,0.00024049,2]
[366881884,1750545047211,-300.0,0.00024049,2]
[366881885,1750545047221,-800.0,0.00024049,2]
[366881886,1750545047231,-300.0,0.00024049,2]
[366881887,1750545047241,-800.0,0.00024049,2]
[366881888,1750545047250,-300.0,0.00024049,2]
[366881889,1750545047259,-800.0,0.00024049,2]
[366881890,1750545047269,-300.0,0.00024049,2]
[366881891,1750545047279,-800.0,0.00024049,2]
[366881892,1750545047288,-300.0,0.00024049,2]
[366881893,1750545047298,-300.0,0.00024049,2]
[366881894,1750545047307,-800.0,0.00024049,2]
[366881895,1750545047317,-800.0,0.00024049,2]
[366881896,1750545047327,-300.0,0.00024049,2]
[366881897,1750545047336,-800.0,0.00024049,2]
[366881898,1750545047346,-300.0,0.00024049,2]
[366881899,1750545047355,-800.0,0.00024049,2]
[366881900,1750545047364,-800.0,0.00024049,2]
[366881901,1750545047374,-800.0,0.00024049,2]
[366881902,1750545047383,-800.0,0.00024049,2]
[366881903,1750545047393,-800.0,0.00024049,2]
[366881904,1750545047402,-636.57,0.00024075,2]
[366881905,1750545047411,-523.49,0.00024075,2]
[366881906,1750545047420,-882.16404566,0.00024141,10]
[366881907,1750545047430,-3716.36563572,0.000242,2]
[366881908,1750545047439,-157.748237,0.00024213,7]
[366881909,1750545047449,-882.16404566,0.00024245,10]
[366881910,1750545047458,-168.0,0.00024261,2]
[366881911,1750545047467,-9792.45757803,0.0002428,2]
[366881912,1750545047476,-168.0,0.00024306,2]
[366881913,1750545047486,-523.49,0.00024317,2]
[366881914,1750545047495,-882.16404566,0.00024348,11]
[366881915,1750545047505,-484.74,0.00024359,3]
[366881916,1750545047521,-1142.6,0.0002436,3]
[366881917,1750545047534,-571.3,0.0002436,3]
[366881918,1750545047543,-365.7551581,0.00024384,2]
[366881919,1750545047553,-365.7551581,0.00024384,2]
[366881920,1750545047563,-365.7551581,0.00024384,2]
[366881921,1750545047572,-365.7551581,0.00024384,2]
[366881922,1750545047582,-365.7551581,0.00024384,2]
[366881923,1750545047591,-367.0046263,0.00024384,2]
[366881924,1750545047601,-420.0,0.00024394,2]
[366881925,1750545047611,-159.16725,0.00024402,2]
[366881926,1750545047619,-882.16404566,0.00024452,11]
[366881927,1750545047630,-150.0,0.000245,2]
[366881928,1750545047639,-158.9019424,0.00024521,2]
[366881929,1750545047649,-573.8932911,0.00024521,2]
[366881930,1750545047658,-1000.0,0.00024521,2]
[366881931,1750545047668,-500.0,0.00024521,2]
[366881932,1750545047677,-500.0,0.00024521,2]
[366881933,1750545047687,-1000.0,0.00024521,2]
[366881934,1750545047696,-1200.0,0.00024521,2]
[366881935,1750545047706,-1000.0,0.00024521,2]
[366881936,1750545047715,-500.0,0.00024543,10]
[366881937,1750545047725,-882.16404566,0.00024555,11]
[366881938,1750545047734,-636.57,0.00024558,2]
[366881939,1750545047744,-523.49,0.00024558,2]
[366881940,1750545047754,-4569.07949207,0.00024598,2]
[366881941,1750545047763,-160.0,0.00024616,2]
[366881942,1750545047773,-160.0,0.00024616,2]
[366881943,1750545047783,-476.65807402,0.0002465,2]
[366881944,1750545047792,-1000.0,0.00024658,2]
[366881945,1750545047802,-1000.0,0.00024658,2]
[366881946,1750545047812,-380.0,0.00024658,2]
[366881947,1750545047822,-1000.0,0.00024658,2]
[366881948,1750545047831,-356.4771512,0.00024658,2]
[366881949,1750545047841,-1000.0,0.00024658,2]
[366881950,1750545047850,-634.43658199,0.00024658,30]
[366881951,1750545047860,-500.0,0.00024658,2]
[366881952,1750545047869,-882.16404566,0.00024659,11]
[366881953,1750545047879,-500.0,0.00024685,2]
[366881954,1750545047889,-500.0,0.00024713,2]
[366881955,1750545047898,-9792.45757803,0.0002474,2]
[366881956,1750545047907,-500.0,0.0002474,2]
[366881957,1750545047916,-882.16404566,0.00024762,11]
[366881958,1750545047926,-500.0,0.00024768,2]
[366881959,1750545047937,-297.67299732,0.00024783,2]
[366881960,1750545047946,-500.0,0.00024795,2]
[366881961,1750545047956,-636.57,0.00024799,2]
[366881962,1750545047965,-523.49,0.00024799,2]
[366881963,1750545047975,-523.49,0.00024799,2]
[366881964,1750545047984,-523.49,0.00024799,2]
[366881965,1750545047994,-523.49,0.00024799,2]
[366881966,1750545048004,-168.47526753,0.000248,2]
[366881967,1750545048013,-101332.25358,0.000248,2]
[366881968,1750545048023,-10133.225358,0.0002482,2]
[366881969,1750545048033,-500.0,0.00024822,2]
[366881970,1750545048042,-523.49,0.00024829,2]
[366881971,1750545048053,-523.49,0.00024829,2]
[366881972,1750545048063,-523.49,0.00024829,2]
[366881973,1750545048073,-523.49,0.00024829,2]
[366881974,1750545048083,-523.62270265,0.00024829,2]
[366881975,1750545048093,-30399.676074,0.0002483,2]
[366881976,1750545048103,-10133.225358,0.0002483,2]
[366881977,1750545048112,-408.856975,0.00024839,4]
[366881978,1750545048124,-636.57,0.00024839,2]
[366881979,1750545048138,-636.57,0.00024839,2]
[366881980,1750545048147,-636.57,0.00024839,2]
[366881981,1750545048157,-636.57,0.00024839,2]
[366881982,1750545048170,-636.57,0.00024839,2]
[366881983,1750545048180,-636.57,0.00024839,2]
[366881984,1750545048191,-636.57,0.00024839,2]
[366881985,1750545048201,-636.57,0.00024839,2]
[366881986,1750545048283,-636.57,0.00024839,2]
[366881987,1750545048294,-636.57,0.00024839,2]
[366881988,1750545048304,-636.57,0.00024839,2]
[366881989,1750545048314,-636.64832037,0.00024839,2]
[366881990,1750545048323,-29703.3681434,0.0002484,7]